[Event "31st MPL National U18 Chess-ch 2022"]
[Site "Pollachi"]
[Date "2022.04.22"]
[Round "10.2"]
[White "Srihari L R"]
[Black "Avinash Ramesh"]
[Result "1-0"]
[ECO "D78"]
[WhiteElo "2400"]
[BlackElo "2402"]
[Annotator "TA"]
[PlyCount "85"]
[EventDate "2022.04.18"]
[EventCountry "IND"]
[SourceTitle "playchess.com"]
[Source "ChessBase"]
[SourceQuality "1"]
[TimeControl "5400+30"]

{[%evp 13,85,16,0,5,19,25,20,0,36,41,61,63,69,63,93,92,101,97,120,106,118,80,105,48,60,63,76,69,87,85,83,85,91,72,168,169,201,188,197,204,224,190,209,208,279,269,306,298,266,275,502,556,546,535,522,508,458,465,975,581,572,563,581,594,594,587,29985,29986,29986,29986,29993,29994,29996,29997]} 1. d4 {[%emt 0:00:28]} Nf6 {[%emt 0:00:40]} 2. c4 {[%emt 0:00:17]} g6 {[%emt 0:00:06]} 3. g3 {[%emt 0:00:05]} c6 {[%emt 0:01:39]} 4. Bg2 {[%emt 0:04:14]} d5 {[%emt 0:00:09]} 5. Nf3 {[%emt 0:00:06][%cal Bg1f3,Bf3e5,Be5c4,Bc4a5][%mdl 32]} Bg7 {[%emt 0:00:08]} 6. O-O {[%emt 0:00:49]} O-O {[%emt 0:00:13]} 7. Ne5 {[%emt 0:05:52]} Nbd7 {[%emt 0:09:52] 7...Ng4 is a critical line.} 8. Nc3 {[%emt 0:05:14] D78: Fianchetto Grünfeld: 6 0-0 c6.} dxc4 {[%emt 0:03:25]} 9. Nxc4 {[%emt 0:01:09]} Nb6 {[%emt 0:00:12]} 10. Na5 {[%emt 0:06:04] The position is equal.} Nbd5 {[%emt 0:09:20] And now ...Nxc3 would win.} 11. Nb3 Bf5 {[%emt 0:00:30]} 12. Re1 Nxc3 {[%emt 0:00:30]} 13. bxc3 {[#]} Be4 $146 {[%emt 0:00:30]} ({Predecessor:} 13... Ne4 14. Bxe4 Bxe4 15. Nc5 Bf5 16. Nxb7 Qc7 17. Nc5 e5 18. e4 Bh3 19. Be3 {½-½ (19) Radulov,I (2304)-Ozveren,A (2000) Albena 2013}) 14. f3 Bf5 {[%emt 0:00:30]} 15. e4 Bc8 {[%emt 0:00:30]} 16. Be3 Nd7 {[%emt 0:00:30]} 17. Rb1 e5 {[%emt 0:00:30]} 18. dxe5 {&Bianco is more active.} (18. f4 $16) 18... Nxe5 $14 {[%emt 0:00:30]} 19. Bd4 b6 {[%emt 0:00:30]} 20. f4 {White stays focused until the end.} Bg4 {[%emt 0:00:30] [#]} 21. Qc2 Nc4 {[%emt 0:00:30]} 22. Bxg7 Kxg7 {[%emt 0:00:30]} 23. Qf2 Na3 {[%emt 0:00:30]} (23... c5 $16) 24. Rbc1 $18 Be6 {[%emt 0:00:30]} 25. Nd4 {[%cal Oc3c4] Hoping for c4!} Nb5 {[%emt 0:00:30]} 26. Nxc6 Qe8 {[%emt 0:00:30]} 27. Nd4 {f5 is the strong threat.} Rc8 {[%emt 0:00:30]} 28. f5 {[%cal Bf4f5,Bf5f6][%mdl 32]} Bc4 {[%emt 0:00:30]} 29. e5 Rc5 {[%emt 0:00:30]} 30. a4 Nc7 {[%emt 0:00:30]} 31. Qf4 Qd7 $2 {[%emt 0:00:30]} (31... Kh8 {was worth a try.} 32. a5 Nd5) 32. f6+ Kh8 {[%emt 0:00:30]} 33. Qh6 {[%cal Rh6f8]} Rg8 {[%emt 0:00:30]} 34. Re4 {[%cal Oh6h7] White wants to mate with Qxh7+!} g5 {[%emt 0:00:30]} 35. Bh3 {[%cal Bg2h3,Bh3g4,Bg4h5,Bh5g6][%mdl 32]} g4 {[%emt 0:00:30] [#]} (35... Be6 $142) 36. Rxg4 $1 {[%mdl 512]} Rxg4 {[%emt 0:00:30]} 37. e6 fxe6 {[%emt 0:00:30]} 38. Bxg4 {[%cal Rh6f8]} Qf7 {[%emt 0:00:30] Against Qf8+} 39. Re1 e5 {[%emt 0:00:30] [#]} 40. Bh5 $1 {White mates.} Qg8 {[%emt 0:00:30]} 41. Nf5 Ne6 {[%emt 0:00:30]} 42. f7 Qd8 {[%emt 0:00:30]} 43. Bg6 {Weighted Error Value: White=0.14 (very precise) /Black=0.45} 1-0

[Event "31st MPL National U18 Chess-ch 2022"]
[Site "Pollachi"]
[Date "2022.04.22"]
[Round "10.3"]
[White "Krishnan Ritvik"]
[Black "Harshad S"]
[Result "1/2-1/2"]
[ECO "B06"]
[WhiteElo "1761"]
[BlackElo "2328"]
[Annotator "TA"]
[PlyCount "61"]
[EventDate "2022.04.18"]
[EventCountry "IND"]
[SourceTitle "playchess.com"]
[Source "ChessBase"]
[SourceQuality "1"]
[TimeControl "5400+30"]

{[%evp 9,61,41,45,34,66,57,70,56,134,120,133,135,135,112,166,113,140,37,52,56,60,31,143,132,133,132,142,142,135,99,129,118,134,81,70,74,82,62,64,72,74,18,27,31,96,0,20,0,87,0,20,0,84,0]} 1. e4 {[%emt 0:00:01]} g6 {[%emt 0:00:12]} 2. d4 {[%emt 0:00:04]} Bg7 {[%emt 0:00:06]} 3. Nf3 {[%emt 0:00:01]} a6 {[%emt 0:00:35]} 4. Bd3 {[%emt 0:02:22]} d6 {[%emt 0:01:36]} 5. c3 {[%emt 0:04:03]} Nd7 {[%emt 0:00:33]} 6. O-O {[%emt 0:00:34] B06: Modern Defence.} c5 {[%emt 0:06:09]} 7. Re1 {[%emt 0:08:43]} e5 {[%emt 0:07:03]} 8. dxe5 {[%emt 0:04:08] White is slightly better.} dxe5 {[%emt 0:00:48] [#]} (8... Nxe5 $14 9. Nxe5 dxe5) 9. a4 $146 {[%emt 0:02:05]} ({Predecessor:} 9. Bc4 Ngf6 10. a4 Qc7 11. a5 O-O 12. Qb3 h6 13. Nh4 b5 14. axb6 Nxb6 15. Bf1 {½-½ (92) Makropoulou,M (2272)-Yildiz Kadioglu,B (2117) Istanbul 2002}) 9... Ne7 {[%emt 0:02:05]} 10. Na3 {[%emt 0:01:56]} O-O {[%emt 0:03:57]} 11. Nc4 {[%emt 0:01:09] &Bianco is more active.} h6 {[%emt 0:09:37]} (11... Nc6 $16) 12. Qe2 {[%emt 0:07:19]} (12. Bc2 $18) 12... Nc6 {[%emt 0:10:27]} 13. Nd6 {[%emt 0:06:27]} ({White should play} 13. a5 $16) 13... Qe7 {[%emt 0:03:39]} 14. Nxc8 {[%emt 0:00:43]} Raxc8 {[%emt 0:00:16]} 15. Nd2 {[%emt 0:03:47]} Nd8 {[%emt 0:14:17]} (15... Na5 $14) 16. a5 {[%emt 0:03:31]} Ne6 {[%emt 0:01:48]} 17. g3 {[%emt 0:01:34]} Rcd8 {[%emt 0:13:58]} 18. Nc4 {[%emt 0:02:35]} Kh8 {[%emt 0:00:51]} 19. Ne3 {[%emt 0:05:12]} Nf6 {[%emt 0:00:38]} 20. Bc4 {[%emt 0:01:21]} Rd7 {[%emt 0:03:22]} 21. Nd5 {[%emt 0:02:36]} (21. Bb3 $142) 21... Nxd5 {[%emt 0:01:48]} 22. Bxd5 {[%emt 0:00:45]} f5 {[%emt 0:03:18]} 23. b3 {[%emt 0:02:41]} Ng5 {[%emt 0:04:27]} 24. Bxg5 {[%emt 0:03:48]} Qxg5 {[%emt 0:00:04]} 25. f3 {[%emt 0:02:24]} (25. Reb1 $16) 25... h5 {[%emt 0:01:07]} 26. Kh1 {[%emt 0:01:47]} Qe7 {[%emt 0:02:53]} (26... Bh6 $14) 27. Kg1 {[%emt 0:00:24]} (27. Rg1 $16) 27... Qg5 $11 {[%emt 0:00:07]} 28. Kh1 {[%emt 0:00:04]} (28. Rad1 $11) 28... Qe7 $16 {[%emt 0:00:07]} 29. Kg1 {[%emt 0:00:02]} (29. Rg1 $16) 29... Qg5 $11 {[%emt 0:00:13]} 30. Kh1 {[%emt 0:00:01]} ({Better is} 30. Rad1 $11) 30... Qe7 $16 {[%emt 0:00:10]} 31. Kg1 {[%emt 0:00:02] Weighted Error Value: White=0.31/Black=0.21 (precise)} (31. Rg1 $16) 1/2-1/2

[Event "31st MPL National U18 Chess-ch 2022"]
[Site "Pollachi"]
[Date "2022.04.22"]
[Round "10.4"]
[White "Bharath Subramaniyam H"]
[Black "Apoorv Kamble"]
[Result "1/2-1/2"]
[ECO "A01"]
[WhiteElo "2508"]
[BlackElo "1679"]
[Annotator "TA"]
[PlyCount "64"]
[EventDate "2022.04.18"]
[EventCountry "IND"]
[SourceTitle "playchess.com"]
[Source "ChessBase"]
[SourceQuality "1"]
[TimeControl "5400+30"]

{[%evp 11,64,-6,-6,-13,-7,-7,0,-15,-15,-88,-78,-78,-67,-76,-104,-92,-93,-79,-76,-69,-86,-91,-82,-72,-81,-90,-75,-134,-134,-124,-139,-145,-124,-123,-69,-67,-76,-97,-108,-108,-103,-126,0,-89,0,-138,0,-60,0,-130,0,-71,-28,-62,-41]} 1. b3 {[%emt 0:00:07]} e5 {[%emt 0:00:07]} 2. Bb2 {[%emt 0:00:07]} Nc6 {[%emt 0:00:02]} 3. c4 {[%emt 0:00:07]} Nf6 {[%emt 0:00:06]} 4. e3 {[%emt 0:00:08]} d5 {[%emt 0:00:04]} 5. cxd5 {[%emt 0:00:06]} Nxd5 {[%emt 0:00:07]} 6. a3 {[%emt 0:00:08]} Bd6 {[%emt 0:00:11]} 7. d3 {[%emt 0:01:03] A01: Nimzowitsch-Larsen Opening.} O-O {[%emt 0:00:12]} 8. Nf3 {[%emt 0:00:25] 8.Nd2 is the fancy move.} Qe7 {[%emt 0:00:17]} 9. Nbd2 {[%emt 0:04:05] The position is equal.} f5 {[%emt 0:02:06]} 10. Be2 {[%emt 0:07:58]} (10. Nc4 $11) 10... e4 $17 {[%emt 0:09:43]} 11. dxe4 {[%emt 0:02:06]} fxe4 {[%emt 0:00:11]} 12. Bc4 {[%emt 0:00:24] [#]} Be6 $1 {[%emt 0:01:02]} 13. Nxe4 {[%emt 0:40:34] [#]} Nxe3 {[%emt 0:00:19][%mdl 64] Discovered Attack} 14. fxe3 {[%emt 0:00:46] Black must now prevent Qc2.} Bxc4 {[%emt 0:00:08][%mdl 64] Discovered Attack} 15. bxc4 {[%emt 0:00:38] Strongly threatening Qd5+.} Qxe4 {[%emt 0:00:02]} 16. Qd5+ {[%emt 0:00:22]} Qxd5 {[%emt 0:00:02]} 17. cxd5 {[%emt 0:00:06] [#]} Na5 {[%emt 0:01:15] [#]} 18. Rc1 $146 {[%emt 0:00:00]} ({Predecessor:} 18. Ke2 Rae8 19. Rhd1 Nc4 20. Bd4 Nxa3 21. Kd3 a6 22. Bb2 Nb5 23. e4 Rf4 24. Re1 {½-½ (42) Schoenberger,K (2008)-Drosson,F (1935) GER email 2013}) 18... b5 {[%emt 0:03:37]} 19. Nd2 {[%emt 0:10:16]} (19. Be5 $142) 19... Rae8 {[%emt 0:06:14]} 20. Ke2 {[%emt 0:07:45]} Rf5 {[%emt 0:03:38]} 21. Bc3 {[%emt 0:03:43]} Nb7 {[%emt 0:10:04]} 22. Bb4 {[%emt 0:01:20]} Re7 {[%emt 0:28:26]} (22... Bf4 $17 23. e4 Rxd5) 23. Bxd6 {[%emt 0:08:56]} Nxd6 {[%emt 0:00:06]} 24. Rc3 {[%emt 0:00:30]} Rxd5 {[%emt 0:02:32]} 25. Rhc1 {[%emt 0:00:23]} Rde5 {[%emt 0:01:39][%cal Oc7c5]} 26. Kf2 {[%emt 0:03:10]} Rd5 {[%emt 0:01:49]} 27. Ke2 {[%emt 0:00:09]} Rde5 {[%emt 0:00:22]} ({Better is} 27... Rg5 28. g3 Rge5) 28. Kf2 {[%emt 0:00:11]} Rd5 {[%emt 0:00:40]} (28... R7e6 $17 29. Ke2 Re8) 29. Ke2 $15 {[%emt 0:00:13]} Rde5 {[%emt 0:00:15]} (29... Rg5 $15 30. g3 Rge5) 30. Kf2 $1 $17 {[%emt 0:00:05]} Rd5 {[%emt 0:00:25]} ({Black should play} 30... R7e6 31. Ke2 Re7) 31. Ke2 {[%emt 0:00:06]} Ne8 {[%emt 0:30:19]} (31... Rg5 $5 {[%cal Rg5g2]} 32. Kf2 Rd5 $17) 32. Nf3 {[%emt 0:10:33]} Re6 {[%emt 0:00:30] Weighted Error Value: White=0.09 (flawless) /Black=0.28 (precise)} 1/2-1/2

[Event "31st MPL National U18 Chess-ch 2022"]
[Site "Pollachi"]
[Date "2022.04.22"]
[Round "10.5"]
[White "Dinesh Kumar Jaganathan"]
[Black "Ayush Sharma"]
[Result "1-0"]
[ECO "E19"]
[WhiteElo "1943"]
[BlackElo "2302"]
[Annotator "TA"]
[PlyCount "63"]
[EventDate "2022.04.18"]
[EventCountry "IND"]
[SourceTitle "playchess.com"]
[Source "ChessBase"]
[SourceQuality "1"]
[TimeControl "5400+30"]

{[%evp 15,63,24,70,17,54,39,83,21,122,119,116,116,154,134,187,125,129,110,143,151,140,160,147,152,161,159,431,425,1098,1719,1707,1683,1647,1705,1503,1449,1440,1321,1321,451,441,439,1976,2008,1955,1917,1802,1732,1622,1554]} 1. Nf3 {[%emt 0:00:04]} Nf6 {[%emt 0:00:03]} 2. c4 {[%emt 0:00:10]} e6 {[%emt 0:00:03]} 3. g3 {[%emt 0:00:04]} b6 {[%emt 0:00:04]} 4. Bg2 {[%emt 0:00:05]} Bb7 {[%emt 0:00:01]} 5. O-O {[%emt 0:00:09]} Be7 {[%emt 0:00:02]} 6. d4 {[%emt 0:00:31]} O-O {[%emt 0:01:06]} 7. Nc3 {[%emt 0:00:02]} Ne4 {[%emt 0:00:43]} 8. Qc2 {[%emt 0:00:07] 8.Bd2 is more advanced technology.} f5 {[%emt 0:03:45]} (8... Nxc3 $11 {deserves consideration.} 9. Qxc3 a5) 9. Rd1 {[%emt 0:11:16] E19: Queen's Indian: Old Main Line with 7...Ne4 8 Qc2 Nxc3 8 Qxc3.} (9. Ne5 $14) 9... Bf6 {[%emt 0:12:27]} 10. Ne5 {[%emt 0:13:08][%cal Rc3e4]} d5 {[%emt 0:00:40] [#]} 11. f3 $146 {[%emt 0:05:55]} ({White should play} 11. cxd5 $16 Nxc3 12. bxc3 (12. Qxc3 Bxd5 13. Bxd5 Qxd5 $14)) ({Predecessor:} 11. Be3 Qe7 12. Qb3 c6 13. Rac1 Bxe5 14. dxe5 Nd7 15. cxd5 exd5 16. Nxd5 cxd5 17. Rc7 Qxe5 18. Rxd7 Rf7 19. Rxb7 {1-0 (19) Kelly,B (2468)-Burnett,R (2442) Budapest 2003}) 11... Nd6 {[%emt 0:04:00]} (11... Nxc3 $11 12. Qxc3 c5 13. dxc5 Nd7) 12. cxd5 $16 {[%emt 0:05:21]} exd5 {[%emt 0:00:04]} 13. Qb3 {[%emt 0:00:51]} c5 {[%emt 0:15:00]} 14. dxc5 $1 {[%emt 0:04:15]} (14. Nxd5 $6 c4 15. Nxf6+ gxf6 16. Nxc4 Bd5 $14) 14... bxc5 {[%emt 0:00:18]} (14... Bxe5 $16 15. cxd6 Bxc3) 15. f4 {[%emt 0:06:16]} (15. Rxd5 $18 c4 16. Qxb7 $3 {[%mdl 512]} (16. Nxc4 Bxd5 17. Nxd5 Kh8 $16) 16... Nxb7 17. Rxd8 Nxd8 18. f4 (18. Nxc4 Nd7 $14) 18... Bxe5 19. Bxa8 (19. fxe5 Nbc6 $11) 19... Bd4+ 20. e3) 15... c4 {[%emt 0:03:00]} 16. Qc2 $36 {[%emt 0:06:31][%mdl 2048] White is in control. 0x0.000e62c4cf4ddp-1022s more active pieces. The black rooks are badly placed.} Bxe5 {[%emt 0:04:10]} 17. fxe5 {[%emt 0:00:25]} Ne4 {[%emt 0:00:55]} 18. Be3 {[%emt 0:01:35] Against Qb6} Qa5 {[%emt 0:10:25]} 19. Nxe4 {[%emt 0:11:45]} fxe4 {[%emt 0:00:14]} 20. b3 {[%emt 0:00:32]} Qa3 $2 {[%emt 0:09:14] A mistake that costs the game.} (20... Nc6 $16 {was worth a try.}) 21. Bxe4 $18 {[%emt 0:02:04][%cal Bg2e4,Be4h7,Bh7f5,Bf5e6,Be6f7][%mdl 32] White is clearly winning.} Na6 {[%emt 0:04:35]} (21... dxe4 $2 22. Qxc4+ Kh8 23. Bc5) (21... Qe7 $142 22. Bxd5+ Bxd5) 22. Bxh7+ {[%emt 0:03:20] This bishop pair is nice.} Kh8 {[%emt 0:00:05]} 23. Qg6 {[%emt 0:01:12]} Rae8 {[%emt 0:03:19]} 24. Qh5 {[%emt 0:01:36] Threatening mate with Bg6+.} Rxe5 {[%emt 0:00:05]} 25. Bf5+ {[%emt 0:00:09]} Kg8 {[%emt 0:00:03]} 26. Qh7+ {[%emt 0:00:06]} Kf7 {[%emt 0:00:06] [#]} 27. Qg6+ {[%emt 0:00:22]} (27. Rf1 $142 $1 {Bg4+ would kill now.} Rxe3 (27... Rxf5 28. Rxf5+) 28. Bg4+ Ke7 29. Qxg7+ Kd6 30. Qxf8+ Re7 31. Rf7 Qc5+ 32. Kf1) 27... Kg8 {[%emt 0:00:06]} 28. Be6+ {[%emt 0:00:23]} ({Not} 28. Qh7+ Kf7 29. Bg4 Ke8) 28... Kh8 {[%emt 0:00:01] [#]} (28... Rxe6 $142 29. Qxe6+ Rf7) 29. Rd4 $1 {[%emt 0:03:13] White threatens Rh4+ and mate.} Qe7 {[%emt 0:02:11]} 30. Rh4+ {[%emt 0:00:08]} Qxh4 {[%emt 0:00:03]} 31. gxh4 {[%emt 0:00:07][%cal Oe3h6]} Nc7 {[%emt 0:00:17]} 32. Bf7 {[%emt 0:01:57] Weighted Error Value: White=0.36/Black=0.62} 1-0

[Event "31st MPL National U18 Chess-ch 2022"]
[Site "Pollachi"]
[Date "2022.04.22"]
[Round "10.6"]
[White "Ilamparthi A R"]
[Black "Mahendra Teja Mekala"]
[Result "1-0"]
[ECO "A39"]
[WhiteElo "1969"]
[BlackElo "1875"]
[Annotator "TA"]
[PlyCount "73"]
[EventDate "2022.04.18"]
[EventCountry "IND"]
[SourceTitle "playchess.com"]
[Source "ChessBase"]
[SourceQuality "1"]
[TimeControl "5400+30"]

{[%evp 21,73,0,0,-14,0,-18,-16,-39,38,29,59,43,119,106,99,114,200,194,298,173,168,173,297,296,287,53,53,53,56,57,57,48,122,119,115,124,110,55,127,127,214,209,242,199,232,153,288,278,480,470,658,641,597,551]} 1. Nf3 {[%emt 0:00:02]} Nf6 {[%emt 0:00:22]} 2. g3 {[%emt 0:00:07]} g6 {[%emt 0:00:14]} 3. c4 {[%emt 0:00:16]} c5 {[%emt 0:00:20]} 4. Nc3 {[%emt 0:00:21]} Nc6 {[%emt 0:00:15]} 5. Bg2 {[%emt 0:00:09]} Bg7 {[%emt 0:00:09]} 6. O-O {[%emt 0:00:14]} O-O {[%emt 0:00:18]} 7. d4 {[%emt 0:00:06]} cxd4 {[%emt 0:00:35]} 8. Nxd4 {[%emt 0:00:06]} Nxd4 {[%emt 0:01:10]} 9. Qxd4 {[%emt 0:00:08]} d6 {[%emt 0:00:58]} 10. Qd2 {[%emt 0:00:48]} Be6 {[%emt 0:04:44]} 11. Bxb7 {[%emt 0:04:57]} Rb8 {[%emt 0:00:18]} 12. Bd5 {[%emt 0:00:13] A39: Symmetrical English vs ...g6: 4 Bg2 Bg7 5 Nf3 Nf6 6 0-0 0-0 7 d4.} Nxd5 {[%emt 0:00:16]} 13. cxd5 {[%emt 0:04:08]} Bh3 {[%emt 0:02:08] A strong pair of Bishops.} 14. Rd1 {[%emt 0:03:43] [#] The position is equal.} Qb6 $146 {[%emt 0:03:32]} (14... Qc7 $15) ({Predecessor:} 14... Qa5 15. Qg5 Bf6 16. Qe3 Bf5 17. Bd2 Qb4 18. b3 Rfc8 19. Rac1 Bd4 20. Qxe7 Bxc3 21. Rxc3 Rxc3 22. Qf6 Rc1 23. Bxc1 {1-0 (23) Polak,T (2540)-Priborsky,I (2331) Czech Republic 2008}) 15. b3 $1 $14 {[%emt 0:05:02]} e5 {[%emt 0:21:55]} 16. Na4 {[%emt 0:07:18]} Qd8 {[%emt 0:02:33]} (16... Qa6 $1 $14) 17. Ba3 $16 {[%emt 0:01:51]} f5 {[%emt 0:04:53]} 18. Rac1 {[%emt 1:10:01]} Qf6 {[%emt 0:05:51]} (18... e4 $16) 19. Rc6 $1 $18 {[%emt 0:00:00]} Rbd8 {[%emt 0:00:05] [#]} (19... f4 $142) 20. Qb4 {[%emt 0:01:00]} (20. Nc5 $142 $1 {[%mdl 512]}) 20... f4 {[%emt 0:06:55] White must now prevent ...fxg3.} 21. Rxd6 {[%emt 0:00:00]} Qf5 {[%emt 0:00:14]} (21... Rxd6 $142 22. Qxd6 Qf5 23. Qe6+ Qxe6 24. dxe6 Re8) 22. Rxd8 {[%emt 0:00:00]} Rxd8 {[%emt 0:00:06]} 23. Qc3 $2 {[%emt 0:00:00]} (23. d6 $18) 23... Qe4 $1 $14 {[%emt 0:06:43][%csl Gh3,LRd5,LRe2][%cal Re4g2]} 24. Qf3 {[%emt 0:00:00] Prevents Qg2+.} Rxd5 $1 {[%emt 0:06:34][%cal Rd5d1]} 25. Nc3 {[%emt 0:00:00]} Qxf3 {[%emt 0:01:17]} 26. exf3 {[%emt 0:00:00]} Ra5 {[%emt 0:02:34]} (26... Rxd1+ $14 27. Nxd1 e4) 27. Bb4 {[%emt 0:00:00]} Ra6 {[%emt 0:00:07]} 28. Rd8+ {[%emt 0:00:00]} Kf7 {[%emt 0:00:14]} 29. Ne4 {[%emt 0:00:00]} (29. Bc5 $16) 29... h6 {[%emt 0:01:17] [#]} (29... Bf6 $14 30. Rd2 Rc6 31. Nd6+ Ke6) 30. a3 $1 $36 {[%emt 0:00:00][%mdl 2048] White is in control. &Bianco is more active.} Rc6 {[%emt 0:01:34]} (30... Be6 $16 31. Rb8 Rb6) 31. Bc5 $18 {[%emt 0:00:00]} a6 {[%emt 0:02:42]} 32. b4 {[%emt 0:00:00] Threatens to win with g4.} Bf5 {[%emt 0:03:34]} 33. Kf1 {[%emt 0:00:00]} Bxe4 {[%emt 0:01:56]} (33... h5 $16 {might work better.} 34. a4 Bf6 35. Rf8+ Kg7) 34. fxe4 {[%emt 0:00:00]} a5 $2 {[%emt 0:00:48]} (34... Bf6 35. Rd5 Ke6) 35. Rd7+ {[%emt 0:00:00] White is clearly winning.} Kf6 {[%emt 0:20:49]} 36. gxf4 {[%emt 0:00:00]} axb4 {[%emt 0:00:00]} 37. axb4 {[%emt 0:00:00] Weighted Error Value: White=0.36/Black=0.56} 1-0

[Event "31st MPL National U18 Chess-ch 2022"]
[Site "Pollachi"]
[Date "2022.04.22"]
[Round "10.7"]
[White "Vignesh B"]
[Black "Chidvilash Sai Surapaneni"]
[Result "1-0"]
[ECO "B11"]
[WhiteElo "2249"]
[BlackElo "1753"]
[Annotator "TA"]
[PlyCount "81"]
[EventDate "2022.04.18"]
[EventCountry "IND"]
[SourceTitle "playchess.com"]
[Source "ChessBase"]
[SourceQuality "1"]
[TimeControl "5400+30"]

{[%evp 10,81,32,21,47,17,22,18,48,43,42,10,31,18,58,46,67,52,55,31,79,66,73,25,96,96,91,97,96,100,102,104,224,68,60,2,54,73,57,43,41,27,55,55,52,54,170,154,146,68,47,18,180,185,688,223,29991,29992,29992,483,563,560,535,519,568,433,472,410,505,478,1876,1768,1272,688]} 1. e4 {[%emt 0:00:05]} c6 {[%emt 0:00:21]} 2. Nf3 {[%emt 0:01:21]} d5 {[%emt 0:00:08]} 3. Nc3 {[%emt 0:00:05]} dxe4 {[%emt 0:00:08]} 4. Nxe4 {[%emt 0:00:05]} Nf6 {[%emt 0:00:09]} 5. Ng3 {[%emt 0:00:46]} h5 {[%emt 0:00:07]} 6. h3 {[%emt 0:00:59]} c5 {[%emt 0:00:17] B11: Caro-Kann: Two Knights Variation.} 7. Bb5+ {[%emt 0:01:48]} Bd7 {[%emt 0:00:13] [#]} 8. Qe2 $146 {[%emt 0:00:42]} ({Predecessor:} 8. Bxd7+ Qxd7 9. d4 Nc6 10. Be3 cxd4 11. Bxd4 Nxd4 12. Qxd4 Qxd4 13. Nxd4 Rd8 14. O-O-O {0-1 (48) Sykora,O (2099)-Mostbauer,F (2274) Ceske Budejovice 2021}) 8... Nc6 {[%emt 0:02:58] The position is equal.} 9. O-O {[%emt 0:11:18]} e6 {[%emt 0:01:42]} 10. Rd1 {[%emt 0:01:25]} Qc7 {[%emt 0:01:29]} 11. d4 {[%emt 0:13:03] Strongly threatening d5.} cxd4 {[%emt 0:03:10]} 12. Nxd4 {[%emt 0:01:44]} Bc5 {[%emt 0:12:15]} 13. Bxc6 {[%emt 0:31:04]} Bxc6 {[%emt 0:00:46]} 14. Nxc6 {[%emt 0:02:38]} bxc6 {[%emt 0:03:49]} (14... Qxc6 $14 15. Bg5 h4) 15. Qf3 $16 {[%emt 0:07:33]} Bd6 {[%emt 0:02:46] Inhibits Bf4.} 16. Ne2 {[%emt 0:02:00]} (16. b3 $16) 16... Nd7 {[%emt 0:03:17]} (16... O-O $11 {remains equal.}) 17. Bf4 {[%emt 0:03:41]} Bxf4 {[%emt 0:00:31]} 18. Nxf4 {[%emt 0:00:02]} (18. Qxf4 Qxf4 19. Nxf4 g5 $11) 18... g6 {[%emt 0:00:07]} 19. Re1 {[%emt 0:07:17][%cal Of4e6]} O-O {[%emt 0:01:39]} 20. Qg3 $1 {[%emt 0:00:44][%cal Oe1e6]} Qb8 {[%emt 0:04:12]} (20... Nb6 $16 {was necessary.}) 21. Nxh5 $2 {[%emt 0:06:03]} (21. Rad1 $18 Nf6 22. Rxe6 $1 {[%mdl 512]} Qxb2 23. Rxc6) 21... Qxb2 $14 {[%emt 0:00:33]} 22. Rab1 {[%emt 0:02:26]} (22. Rad1 $14 Nf6 23. Qb3 $1 Qxb3 24. Nxf6+ Kg7 25. cxb3 (25. axb3 Kxf6 26. Re4 Rfd8 $14) 25... Kxf6 26. Rd6) 22... Qh8 {[%emt 0:01:13]} ({Better is} 22... Qxc2 $11 23. Rbd1 Qf5) 23. Nf4 $1 {[%emt 0:00:26]} Qf6 {[%emt 0:01:41]} 24. Rbd1 {[%emt 0:01:49]} Nb6 {[%emt 0:02:28]} 25. Rd6 {[%emt 0:01:39]} Rfe8 {[%emt 0:00:20]} 26. h4 {[%emt 0:01:53]} Nd5 {[%emt 0:03:36]} 27. Nd3 {[%emt 0:00:08]} Qc3 {[%emt 0:01:31]} ({Black should play} 27... Ne7 $14) 28. h5 $1 $18 {[%emt 0:00:33]} Ne7 {[%emt 0:00:05] And now ...Nf5 would win.} 29. hxg6 {[%emt 0:01:04]} (29. Qg5 $1 $16 {Threatens to win with Rd7.} c5 30. Rd1 (30. Qxc5 Qxc5 31. Nxc5 Rec8 $11) 30... Qxc2 31. Rc1) 29... Nxg6 $14 {[%emt 0:00:01]} 30. Qf3 {[%emt 0:00:33]} (30. f4 $5 {[%cal Rf4f5]} Qg7 31. Qg5 $14 (31. Rxc6 Rac8 $14)) 30... c5 $2 {[%emt 0:00:17] A mistake that costs the game.} (30... Rac8 $1 $11 {and Black is okay.}) 31. Rd7 $18 {[%emt 0:00:22]} Nh8 {[%emt 0:04:58]} (31... Qg7 32. Nxc5 Nh4) 32. Re4 $2 $40 {[%emt 0:00:18][%mdl 128] White has strong attack.} (32. Re5 {White threatens Qf6 and mate.} Rf8 33. Qf6) 32... c4 $2 {[%emt 0:00:14]} (32... Rad8 $18 33. Rc7 (33. Rxa7 Rd4 $18) 33... Qa1+ 34. Re1 Qxa2 35. Rxc5 (35. Ne5 Qa5 $18) 35... Ng6) 33. Rg4+ {[%emt 0:00:33]} Kf8 {[%emt 0:00:02] [#]} 34. Rf4 {[%emt 0:00:46]} Qa1+ {[%emt 0:02:02]} 35. Kh2 {[%emt 0:00:07][%cal Rf4f7]} Qg7 {[%emt 0:00:10]} 36. Nc5 {[%emt 0:00:49] Active counter play!} Rac8 {[%emt 0:00:18]} 37. Nb7 {[%emt 0:00:25] Black must now prevent Nd6.} ({Weaker is} 37. Qh5 Rc6 $18) 37... Rb8 {[%emt 0:02:37]} 38. g3 {[%emt 0:00:38] aiming for Nd6.} e5 {[%emt 0:01:32]} 39. Rg4 {[%emt 0:00:15] White is clearly winning.} e4 {[%emt 0:02:28]} (39... Ng6 $142 40. Nd6 (40. Rxc4 e4 $16) 40... Qh7+ 41. Kg2 Re7) 40. Qa3+ {[%emt 0:00:03]} Kg8 {[%emt 0:00:08]} 41. Rxg7+ {[%emt 0:00:02] Weighted Error Value: White=0.44/Black=0.74} 1-0